fUSD/lending_fUSD_20240331
["ID","MTS","AMOUNT","RATE_DAILY","PERIOD"]
[321108212,1711900248649,-3613.29,0.000487,6]
[321108213,1711900248658,-3613.29,0.000487,6]
[321108214,1711900248667,-3613.29,0.000487,6]
[321108215,1711900248676,-3613.29,0.000487,6]
[321108216,1711900248685,-3613.29,0.000487,6]
[321108217,1711900248694,-3613.29,0.000487,6]
[321108218,1711900248703,-3613.29,0.000487,6]
[321108219,1711900248713,-3613.29,0.000487,6]
[321108220,1711900248723,-3613.29,0.000487,6]
[321108221,1711900248732,-3613.29,0.000487,6]
[321108222,1711900248741,-3613.29,0.000487,6]
[321108223,1711900248751,-3613.29,0.000487,6]
[321108224,1711900248760,-3613.29,0.000487,6]
[321108225,1711900248769,-3613.29,0.000487,6]
[321108226,1711900248778,-3613.29,0.000487,6]
[321108227,1711900248787,-3613.29,0.000487,6]
[321108228,1711900248797,-151.0,0.000487,14]
[321108229,1711900248806,-163.950162,0.000487,14]
[321108230,1711900248815,-151.0,0.000487,14]
[321108231,1711900248824,-151.0,0.000487,14]
[321108232,1711900248834,-1043.0,0.00048713,30]
[321108233,1711900248843,-154.52845761,0.00048847,30]
[321108234,1711900248853,-151.0,0.00048877,120]
[321108235,1711900248863,-365.0,0.000489,7]
[321108236,1711900248872,-166.66666665,0.0004893,30]
[321108237,1711900248881,-198.78,0.00048986,15]
[321108238,1711900248891,-696.13981054,0.00049,30]
[321108239,1711900248900,-3147.32686054,0.00049,120]
[321108240,1711900248909,-1200.0,0.00049,4]
[321108241,1711900248919,-750.0,0.00049,3]
[321108242,1711900248929,-724.30430329,0.00049,30]
[321108243,1711900248938,-160.07,0.00049286,2]
[321108244,1711900248948,-1000.0,0.00049315,60]
[321108245,1711900248958,-3000.0,0.00049315,120]
[321108246,1711900248967,-500.0,0.00049315,60]
[321108247,1711900248977,-1928.53,0.00049315,60]
[321108248,1711900248986,-161.37966254,0.00049335,30]
[321108249,1711900248996,-3000.0,0.00049452,120]
[321108250,1711900249006,-3313.11193701,0.0004949,10]
[321108251,1711900249015,-551.96,0.000495,7]
[321108252,1711900249025,-270.77,0.000495,7]
[321108253,1711900249034,-1043.0,0.00049535,60]
[321108254,1711900249044,-3000.0,0.00049589,120]
[321108255,1711900249053,-152.02,0.00049667,120]
[321108256,1711900249063,-3000.0,0.00049726,120]
[321108257,1711900249074,-151.0,0.00049753,120]
[321108258,1711900249083,-3000.0,0.00049863,120]
[321108259,1711900249093,-848.97,0.00049892,2]
[321108260,1711900249102,-158.61463628,0.00049927,30]
[321108261,1711900249112,-156.73066867,0.00049932,30]
[321108262,1711900249122,-100000.0,0.0005,50]
[321108263,1711900249132,-27063.55526501,0.0005,4]
[321108264,1711900249142,-2844.03657921,0.0005,10]
[321108265,1711900249152,-169.65959936,0.0005,120]
[321108266,1711900249162,-300.0,0.0005,3]
[321108267,1711900249172,-10000.0,0.0005,14]
[321108268,1711900249181,-439.2333381,0.0005,28]
[321108269,1711900249191,-233.67863452,0.0005,4]
[321108270,1711900249201,-1203.93417726,0.0005,30]
[321108271,1711900249210,-151.0,0.0005,120]
[321108272,1711900249220,-153.945093,0.0005,120]
[321108273,1711900249230,-151.0,0.0005,120]
[321108274,1711900249241,-165.086576,0.0005,120]
[321108275,1711900249254,-151.0,0.0005,120]
[321108276,1711900249264,-151.0,0.0005,120]
[321108277,1711900249273,-151.0,0.0005,120]
[321108278,1711900249283,-151.0,0.0005,120]
[321108279,1711900249292,-1017.44546864,0.0005,30]
[321108280,1711900249302,-2860.71418819,0.0005,30]
[321108281,1711900249311,-3007.24187955,0.0005,30]
[321108282,1711900249321,-334201.0,0.0005,120]
[321108283,1711900249331,-151.0,0.0005,120]
[321108284,1711900249341,-309.78140984,0.0005,2]
[321108285,1711900249350,-2372.57924604,0.0005,30]
[321108286,1711900249360,-29314.3008012,0.0005,30]
[321108287,1711900249369,-500.0,0.0005,120]
[321108288,1711900249379,-2858.0,0.0005,11]
[321108289,1711900249388,-726.494139,0.0005,51]
[321108290,1711900249398,-151.0,0.0005,120]
[321108291,1711900249408,-151.0,0.0005,120]
[321108292,1711900249418,-151.0,0.0005,120]
[321108293,1711900249428,-151.0,0.0005,120]
[321108294,1711900249437,-151.0,0.0005,120]
[321108295,1711900249446,-155.369584,0.0005,120]
[321108296,1711900249456,-151.0,0.0005,120]
[321108297,1711900249466,-155.369584,0.0005,120]
[321108298,1711900249476,-151.0,0.0005,120]
[321108299,1711900249486,-3000.0,0.0005,120]
[321108300,1711900249496,-151.0,0.0005,120]
[321108301,1711900249505,-151.0,0.0005,120]
[321108302,1711900249516,-151.0,0.0005,120]
[321108303,1711900249525,-830.035408,0.0005,120]
[321108304,1711900249535,-151.0,0.0005,120]
[321108305,1711900249545,-830.035408,0.0005,120]
[321108306,1711900249555,-151.0,0.0005,120]
[321108307,1711900249565,-999.52,0.0005,2]
[321108308,1711900249575,-196.747745,0.0005,120]
[321108309,1711900249585,-151.0,0.0005,120]
[321108310,1711900249595,-196.747745,0.0005,120]
[321108311,1711900249605,-160.163448,0.0005,120]
[321108312,1711900249614,-2312.101622,0.0005,120]
[321108313,1711900249624,-2312.101622,0.0005,120]
[321108314,1711900249634,-151.0,0.0005,120]
[321108315,1711900249644,-436.499066,0.0005,120]
[321108316,1711900249654,-524.290653,0.0005,120]
[321108317,1711900249664,-436.499066,0.0005,120]
[321108318,1711900249674,-524.290653,0.0005,120]
[321108319,1711900249683,-151.0,0.0005,120]
[321108320,1711900249693,-179.327014,0.0005,120]
[321108321,1711900249704,-151.401866,0.0005,60]
[321108322,1711900249715,-734.891725,0.0005,120]
[321108323,1711900249724,-734.891725,0.0005,120]
[321108324,1711900249734,-151.0,0.0005,30]
[321108325,1711900249743,-151.0,0.0005,30]
[321108326,1711900249753,-825.7454,0.0005,120]
[321108327,1711900249763,-301.04,0.0005,2]
[321108328,1711900249774,-825.7454,0.0005,120]
[321108329,1711900249784,-151.0,0.0005,120]
[321108330,1711900249793,-259.738436,0.0005,30]
[321108331,1711900249803,-259.738436,0.0005,30]
[321108332,1711900249812,-188.385358,0.0005,120]
[321108333,1711900249821,-403.644956,0.0005,120]
[321108334,1711900249832,-151.0,0.0005,7]
[321108335,1711900249842,-403.644956,0.0005,120]
[321108336,1711900249853,-151.0,0.0005,7]
[321108337,1711900249863,-188.385358,0.0005,120]
[321108338,1711900249873,-151.0,0.0005,120]
[321108339,1711900249882,-151.0,0.0005,120]
[321108340,1711900249891,-151.0,0.0005,120]
[321108341,1711900249901,-151.0,0.0005,120]
[321108342,1711900249910,-151.0,0.0005,120]
[321108343,1711900249919,-202.687806,0.0005,120]
[321108344,1711900249929,-202.687806,0.0005,120]
[321108345,1711900249938,-154.7230495,0.00050006,60]
[321108346,1711900249947,-151.22606623,0.00050076,60]
[321108347,1711900249958,-3000.0,0.00050136,120]
[321108348,1711900249967,-1928.53,0.00050136,64]
[321108349,1711900249977,-314.065432,0.00050198,92]
[321108350,1711900249987,-365.0,0.000502,7]
[321108351,1711900249997,-3000.0,0.00050273,120]
[321108352,1711900250006,-151.54131081,0.00050317,60]
[321108353,1711900250015,-1043.0,0.00050357,60]
[321108354,1711900250025,-151.54131082,0.00050408,60]
[321108355,1711900250035,-3000.0,0.0005041,120]
[321108356,1711900250044,-151.0,0.00050495,2]
[321108357,1711900250055,-157.032813,0.00050498,100]
[321108358,1711900250064,-151.032606,0.00050498,75]
[321108359,1711900250074,-314.06563,0.00050498,107]
[321108360,1711900250084,-2500.0,0.00050547,120]
[321108361,1711900250093,-151.0,0.0005063,120]
[321108362,1711900250103,-1000.0,0.00050684,60]
[321108363,1711900250113,-161.37966254,0.0005073,60]
[321108364,1711900250123,-158.91072455,0.00050735,60]
[321108365,1711900250132,-302.065212,0.00050798,76]
[321108366,1711900250141,-314.06563,0.00050798,100]
[321108367,1711900250151,-11494.065212,0.00050798,91]
[321108368,1711900250160,-1391.25534,0.0005082,53]
[321108369,1711900250170,-1641.79949408,0.000509,120]
[321108370,1711900250180,-1641.79949408,0.000509,120]
[321108371,1711900250190,-1641.79949408,0.000509,120]
[321108372,1711900250200,-1641.79949408,0.000509,120]
[321108373,1711900250209,-1641.79949408,0.000509,120]
[321108374,1711900250219,-1641.79949408,0.000509,120]
[321108375,1711900250229,-1641.79949408,0.000509,120]
[321108376,1711900250238,-1928.53,0.00050958,68]
[321108377,1711900250250,-800.0,0.00051,3]
[321108378,1711900250260,-17608.0,0.00051,120]
[321108379,1711900250270,-551.96,0.00051,7]
[321108380,1711900250280,-270.77,0.00051,7]
[321108381,1711900250290,-150.0,0.00051,15]
[321108382,1711900250299,-155.87930184,0.00051013,60]
[321108383,1711900250309,-301.04,0.00051055,2]
[321108384,1711900250318,-1043.0,0.00051178,60]
[321108385,1711900250329,-2942.20342858,0.00051277,50]
[321108386,1711900250339,-302.0,0.00051344,4]
[321108387,1711900250349,-999.52,0.00051345,2]
[321108388,1711900250358,-314.065626,0.00051498,101]
[321108389,1711900250368,-151.032606,0.00051498,80]
[321108390,1711900250377,-151.0,0.00051507,120]
[321108391,1711900250386,-151.0,0.000516,120]
[321108392,1711900250396,-151.0,0.000516,120]
[321108393,1711900250406,-151.0,0.000516,120]
[321108394,1711900250416,-365.0,0.000516,7]
[321108395,1711900250425,-154.24,0.000516,7]
[321108396,1711900250435,-154.24,0.000516,7]
[321108397,1711900250444,-154.24,0.000516,7]
[321108398,1711900250574,-154.24,0.000516,7]
[321108399,1711900250599,-154.24,0.000516,7]
[321108400,1711900250608,-154.24,0.000516,7]
[321108401,1711900250618,-154.24,0.000516,7]
[321108402,1711900250629,-154.24,0.000516,7]
[321108403,1711900250639,-154.24,0.000516,7]
[321108404,1711900250648,-154.24,0.000516,7]
[321108405,1711900250658,-154.24,0.000516,7]
[321108406,1711900250667,-154.24,0.000516,7]
[321108407,1711900250677,-3613.29,0.000516,7]
[321108408,1711900250687,-3613.29,0.000516,7]
[321108409,1711900250698,-3613.29,0.000516,7]
[321108410,1711900250708,-3613.29,0.000516,7]
[321108411,1711900250718,-3613.29,0.000516,7]
[321108412,1711900250727,-3613.29,0.000516,7]
[321108413,1711900250737,-3613.29,0.000516,7]
[321108414,1711900250746,-3613.29,0.000516,7]
[321108415,1711900250756,-3613.29,0.000516,7]
[321108416,1711900250766,-3613.29,0.000516,7]
[321108417,1711900250776,-3613.29,0.000516,7]
[321108418,1711900250785,-3613.29,0.000516,7]
[321108419,1711900250795,-3613.29,0.000516,7]
[321108420,1711900250804,-3613.29,0.000516,7]
[321108421,1711900250814,-3613.29,0.000516,7]
[321108422,1711900250823,-3613.29,0.000516,7]
[321108423,1711900250833,-3613.29,0.000516,7]
[321108424,1711900250843,-3613.29,0.000516,7]
[321108425,1711900250853,-3613.29,0.000516,7]
[321108426,1711900250863,-3613.29,0.000516,7]
[321108427,1711900250873,-158.91072455,0.00051651,60]
[321108428,1711900250883,-198.78,0.00051726,120]
[321108429,1711900250892,-302.06563,0.00051745,106]
[321108430,1711900250902,-1928.53,0.0005178,72]
[321108431,1711900250913,-157.032815,0.00051798,104]
[321108432,1711900250923,-302.065212,0.00051848,84]
[321108433,1711900250933,-480.0,0.00051891,120]
[321108434,1711900250943,-551.96,0.000519,7]
[321108435,1711900250952,-270.77,0.000519,7]
[321108436,1711900250962,-371.12,0.00051939,2]
[321108437,1711900250971,-100000.0,0.00052,52]
[321108438,1711900250982,-10000.0,0.00052,14]
[321108439,1711900250992,-151.0,0.00052,7]
[321108440,1711900251002,-152.449981,0.00052,120]
[321108441,1711900251012,-498.970001,0.00052,60]
[321108442,1711900251022,-153.698312,0.00052,120]
[321108443,1711900251033,-498.970001,0.00052,60]
[321108444,1711900251042,-151.0,0.00052,120]
[321108445,1711900251053,-151.0,0.00052,120]
[321108446,1711900251062,-151.0,0.00052,120]
[321108447,1711900251072,-151.0,0.00052,120]
[321108448,1711900251082,-151.893178,0.00052,120]
[321108449,1711900251092,-151.0,0.00052,120]
[321108450,1711900251102,-151.0,0.00052,120]
[321108451,1711900251111,-151.0,0.00052,120]
[321108452,1711900251121,-151.0,0.00052,120]
[321108453,1711900251131,-151.0,0.00052,14]
[321108454,1711900251141,-151.0,0.00052,120]
[321108455,1711900251151,-151.0,0.00052,14]
[321108456,1711900251161,-151.0,0.00052,120]
[321108457,1711900251171,-151.0,0.00052,120]
[321108458,1711900251181,-151.0,0.00052,120]
[321108459,1711900251191,-151.0,0.00052,120]
[321108460,1711900251202,-151.0,0.00052,120]
[321108461,1711900251212,-151.0,0.00052,120]
[321108462,1711900251221,-179.640862,0.00052,120]
[321108463,1711900251232,-1200.0,0.00052,53]
[321108464,1711900251242,-1043.0,0.00052,60]
[321108465,1711900251256,-303.42,0.00052052,60]
[321108466,1711900251267,-926.05,0.00052052,30]
[321108467,1711900251276,-150.0,0.00052052,30]
[321108468,1711900251286,-161.67,0.00052052,30]
[321108469,1711900251296,-416.36,0.00052052,30]
[321108470,1711900251305,-150.0,0.00052052,30]
[321108471,1711900251316,-950.21,0.00052052,30]
[321108472,1711900251325,-150.0,0.00052052,30]
[321108473,1711900251336,-926.05,0.00052052,30]
[321108474,1711900251345,-161.67,0.00052052,30]
[321108475,1711900251355,-150.0,0.00052052,30]
[321108476,1711900251365,-416.36,0.00052052,30]
[321108477,1711900251374,-150.0,0.00052052,30]
[321108478,1711900251384,-150.0,0.00052052,30]
[321108479,1711900251394,-926.05,0.00052052,30]
[321108480,1711900251403,-161.67,0.00052052,30]
[321108481,1711900251413,-150.0,0.00052052,30]
[321108482,1711900251424,-416.36,0.00052052,30]
[321108483,1711900251433,-926.05,0.00052052,30]
[321108484,1711900251443,-150.0,0.00052052,30]
[321108485,1711900251452,-150.0,0.00052052,30]
[321108486,1711900251462,-150.0,0.00052052,30]
[321108487,1711900251480,-416.36,0.00052052,30]
[321108488,1711900251498,-150.0,0.00052052,30]
[321108489,1711900251515,-161.67,0.00052052,30]
[321108490,1711900251535,-150.0,0.00052052,30]
[321108491,1711900251551,-150.0,0.00052052,30]
[321108492,1711900251567,-416.36,0.00052052,30]
[321108493,1711900251585,-150.0,0.00052052,30]
[321108494,1711900251600,-150.0,0.00052052,30]
[321108495,1711900251619,-161.67,0.00052052,30]
[321108496,1711900251637,-150.0,0.00052052,30]
[321108497,1711900251654,-150.0,0.00052052,30]
[321108498,1711900251673,-416.36,0.00052052,30]
[321108499,1711900251693,-150.0,0.00052052,30]
[321108500,1711900251706,-150.0,0.00052052,30]
[321108501,1711900251723,-161.67,0.00052052,30]
[321108502,1711900251740,-416.36,0.00052052,30]
[321108503,1711900251755,-150.0,0.00052052,30]
[321108504,1711900251770,-150.0,0.00052052,30]
[321108505,1711900251785,-150.0,0.00052052,30]
[321108506,1711900251800,-161.67,0.00052052,30]
[321108507,1711900251815,-416.36,0.00052052,30]
[321108508,1711900251830,-150.0,0.00052052,30]
[321108509,1711900251846,-150.0,0.00052052,30]
[321108510,1711900251860,-150.0,0.00052052,30]
[321108511,1711900251875,-161.67,0.00052052,30]
[321108512,1711900251890,-416.36,0.00052052,30]
[321108513,1711900251909,-150.0,0.00052052,30]
[321108514,1711900251924,-150.0,0.00052052,30]
[321108515,1711900251939,-150.0,0.00052052,30]
[321108516,1711900251955,-161.67,0.00052052,30]
[321108517,1711900251970,-416.36,0.00052052,30]
[321108518,1711900251986,-150.0,0.00052052,30]
[321108519,1711900252000,-150.0,0.00052052,30]
[321108520,1711900252017,-161.67,0.00052052,30]
[321108521,1711900252032,-416.36,0.00052052,30]
[321108522,1711900252047,-161.67,0.00052052,30]
[321108523,1711900252062,-150.0,0.00052052,30]
[321108524,1711900252079,-161.67,0.00052052,30]
[321108525,1711900252095,-416.36,0.00052052,30]
[321108526,1711900252109,-300.0,0.00052052,30]
[321108527,1711900252125,-416.36,0.00052052,30]
[321108528,1711900252140,-150.0,0.00052052,30]
[321108529,1711900252155,-161.67,0.00052052,30]
[321108530,1711900252170,-150.0,0.00052052,30]
[321108531,1711900252185,-150.0,0.00052052,30]
[321108532,1711900252200,-403.95,0.00052052,30]
[321108533,1711900252214,-331.34,0.00052052,30]
[321108534,1711900252229,-305.11,0.00052052,30]
[321108535,1711900252245,-157.63,0.00052052,30]
[321108536,1711900252262,-150.0,0.00052052,30]
[321108537,1711900252278,-150.0,0.00052052,30]
[321108538,1711900252293,-150.0,0.00052052,30]
[321108539,1711900252308,-150.0,0.00052052,30]
[321108540,1711900252323,-150.0,0.00052052,30]
[321108541,1711900252338,-150.0,0.00052052,30]
[321108542,1711900252353,-150.0,0.00052052,30]
[321108543,1711900252367,-150.0,0.00052052,30]
[321108544,1711900252383,-150.0,0.00052052,30]
[321108545,1711900252397,-1000.0,0.00052054,60]
[321108546,1711900252411,-2000.0,0.00052054,120]
[321108547,1711900252426,-2000.0,0.00052054,120]
[321108548,1711900252440,-2000.0,0.00052054,120]
[321108549,1711900252454,-2000.0,0.00052054,120]
[321108550,1711900252469,-2000.0,0.00052054,120]
[321108551,1711900252483,-2000.0,0.00052054,120]
[321108552,1711900252498,-2000.0,0.00052054,120]
[321108553,1711900252512,-2000.0,0.00052054,120]
[321108554,1711900252527,-2000.0,0.00052054,120]
[321108555,1711900252541,-2000.0,0.00052054,120]
[321108556,1711900252555,-2000.0,0.00052054,120]
[321108557,1711900252570,-2000.0,0.00052054,120]
[321108558,1711900252584,-2000.0,0.00052054,120]
[321108559,1711900252598,-2000.0,0.00052054,120]
[321108560,1711900252612,-2000.0,0.00052054,120]
[321108561,1711900252627,-2000.0,0.00052054,120]
[321108562,1711900252642,-932.65,0.00052054,120]
[321108563,1711900252657,-4075.46,0.00052099,120]
[321108564,1711900252673,-17608.0,0.000521,120]
[321108565,1711900252687,-301.04,0.0005211,2]
[321108566,1711900252702,-848.97,0.00052156,2]
[321108567,1711900252717,-604.0,0.00052207,7]
[321108568,1711900252733,-151.0,0.00052356,120]
[321108569,1711900252748,-151.0,0.00052384,120]
[321108570,1711900252763,-161.37966254,0.00052396,60]
[321108571,1711900252778,-152.61,0.00052439,60]
[321108572,1711900252792,-308.58,0.00052439,30]
[321108573,1711900252807,-153.84,0.00052439,30]
[321108574,1711900252820,-329.46,0.00052439,30]
[321108575,1711900252834,-430.44,0.00052439,30]
[321108576,1711900252848,-154.38,0.00052439,30]
[321108577,1711900252862,-157.60626263,0.00052465,60]
[321108578,1711900253055,-520.0,0.00052534,120]
[321108579,1711900253071,-1928.53,0.00052602,120]
[321108580,1711900253080,-166.66666666,0.00052615,60]
[321108581,1711900253089,-999.52,0.0005269,2]
[321108582,1711900253099,-150.0,0.00052713,30]
[321108583,1711900253108,-150.0,0.00052713,30]
[321108584,1711900253117,-150.0,0.00052713,30]
[321108585,1711900253127,-150.0,0.00052713,30]
[321108586,1711900253136,-150.0,0.00052713,30]
[321108587,1711900253146,-155.57,0.00052713,30]
[321108588,1711900253155,-161.37966254,0.00052719,60]
[321108589,1711900253164,-1043.0,0.00052822,120]
[321108590,1711900253173,-276.63980303,0.000529,30]
[321108591,1711900253183,-936254.95604268,0.000529,25]
[321108592,1711900253192,-850.0,0.00053,3]
[321108593,1711900253202,-154.52845761,0.00053124,60]
[321108594,1711900253211,-332.0,0.00053165,2]
[321108595,1711900253221,-150.0,0.00053228,30]
[321108596,1711900253231,-2108.419,0.00053228,30]
[321108597,1711900253240,-151.0,0.0005326,120]
[321108598,1711900253251,-150.0,0.00053261,30]
[321108599,1711900253261,-150.0,0.00053261,30]
[321108600,1711900253271,-150.0,0.00053261,30]
[321108601,1711900253280,-490.81568,0.00053262,120]
[321108602,1711900253290,-1391.25534,0.0005332,65]
[321108603,1711900253299,-154.52845761,0.00053367,60]
[321108604,1711900253308,-6000.0,0.0005339,2]
[321108605,1711900253318,-160.07,0.00053393,2]
[321108606,1711900253328,-1000.0,0.00053424,60]
[321108607,1711900253338,-1928.53,0.00053424,120]
[321108608,1711900253347,-1208.0,0.00053529,30]
[321108609,1711900253356,-221.99557909,0.00053549,60]
[321108610,1711900253365,-161.37966254,0.00053616,60]
[321108611,1711900253375,-1043.0,0.00053644,120]
[321108612,1711900253384,-487.32658335,0.0005375,30]
[321108613,1711900253394,-11231.70021857,0.000538,120]
[321108614,1711900253404,-460.238,0.00053855,120]
[321108615,1711900253413,-2423.0,0.00053855,120]
[321108616,1711900253423,-963.0,0.00053855,120]
[321108617,1711900253432,-1385.615,0.00053855,120]
[321108618,1711900253442,-538.0,0.00053855,120]
[321108619,1711900253451,-1313.173,0.00053855,120]
[321108620,1711900253460,-1226.0,0.00053855,120]
[321108621,1711900253470,-434.0,0.00053855,120]
[321108622,1711900253480,-279.0,0.00053855,120]
[321108623,1711900253489,-1269.0,0.00053855,120]
[321108624,1711900253498,-803.0,0.00053855,120]
[321108625,1711900253507,-605.0,0.00053855,120]
[321108626,1711900253516,-2985.0,0.00053855,120]
[321108627,1711900253526,-396.0,0.00053855,120]
[321108628,1711900253539,-1139.0,0.00053855,120]
[321108629,1711900253548,-1464.0,0.00053855,120]
[321108630,1711900253558,-150.741,0.00053855,120]
[321108631,1711900253567,-152.799,0.00053855,120]
[321108632,1711900253576,-1634.045,0.00053855,120]
[321108633,1711900253586,-2427.0,0.00053855,120]
[321108634,1711900253595,-150.774,0.00053855,120]
[321108635,1711900253604,-217.0,0.00053855,2]
[321108636,1711900253613,-2453.0,0.00053855,120]
[321108637,1711900253623,-1182.91,0.00053855,120]
[321108638,1711900253632,-5689.0,0.00053855,120]
[321108639,1711900253641,-4778.0,0.00053855,120]
[321108640,1711900253651,-42943.0,0.00053855,120]
[321108641,1711900253660,-151.0,0.00053855,2]
[321108642,1711900253669,-1048.0,0.00053855,120]
[321108643,1711900253678,-254.2119657,0.000539,120]
[321108644,1711900253688,-157.60626263,0.00053963,60]
[321108645,1711900253698,-161.37966254,0.00053978,60]
[321108646,1711900253707,-100000.0,0.00054,54]
[321108647,1711900253717,-300.0,0.00054,60]
[321108648,1711900253726,-500000.0,0.00054,2]
[321108649,1711900253735,-5744.08614498,0.00054,2]
[321108650,1711900253745,-2999.98,0.00054,30]
[321108651,1711900253754,-3000.0,0.00054,30]
[321108652,1711900253765,-3000.0,0.00054,30]
[321108653,1711900253776,-3000.0,0.00054,30]
[321108654,1711900253785,-3000.0,0.00054,30]
[321108655,1711900253795,-712.89,0.00054,30]
[321108656,1711900253805,-1000.0,0.00054,120]
[321108657,1711900253814,-500.0,0.00054,120]
[321108659,1711900253824,-196.747745,0.00054,120]
[321108660,1711900253834,-151.0,0.00054,120]
[321108662,1711900253843,-196.747745,0.00054,120]
[321108663,1711900253852,-2312.101622,0.00054,120]
[321108664,1711900253861,-2312.101622,0.00054,120]
[321108665,1711900253871,-151.0,0.00054,120]
[321108667,1711900253881,-436.499066,0.00054,120]
[321108668,1711900253890,-524.290653,0.00054,120]
[321108669,1711900253899,-436.499066,0.00054,120]
[321108670,1711900253908,-524.290653,0.00054,120]
[321108671,1711900253917,-151.0,0.00054,120]
[321108672,1711900253926,-734.891725,0.00054,120]
[321108673,1711900253936,-734.891725,0.00054,120]
[321108674,1711900253945,-151.0,0.00054,30]
[321108675,1711900253955,-151.0,0.00054,30]
[321108676,1711900253968,-825.7454,0.00054,120]
[321108677,1711900253978,-825.7454,0.00054,120]
[321108678,1711900253988,-151.0,0.00054,120]
[321108679,1711900253997,-259.738436,0.00054,30]
[321108680,1711900254007,-403.644956,0.00054,120]
[321108681,1711900254017,-188.385358,0.00054,120]
[321108682,1711900254026,-259.738436,0.00054,30]
[321108683,1711900254036,-151.0,0.00054,7]
[321108684,1711900254045,-403.644956,0.00054,120]
[321108685,1711900254054,-151.0,0.00054,7]
[321108686,1711900254064,-188.385358,0.00054,120]
[321108687,1711900254073,-151.0,0.00054,120]
[321108688,1711900254082,-152.96292,0.00054,120]
[321108689,1711900254092,-151.0,0.00054,120]
[321108690,1711900254103,-158.0479,0.00054,120]
[321108691,1711900254113,-153.368925,0.00054,120]
[321108692,1711900254122,-151.0,0.00054,120]
[321108693,1711900254132,-151.0,0.00054,120]
[321108694,1711900254142,-202.687806,0.00054,120]
[321108695,1711900254152,-151.0,0.00054,120]
[321108696,1711900254162,-202.687806,0.00054,120]
[321108697,1711900254172,-261.26389274,0.00054,2]
[321108698,1711900254181,-999.52,0.00054035,2]
[321108699,1711900254190,-151.0,0.00054137,120]
[321108700,1711900254199,-21634.23758822,0.00054219,120]
[321108701,1711900254209,-150.0,0.00054231,120]
[321108702,1711900254218,-165.4785341,0.00054246,3]
[321108703,1711900254227,-1928.53,0.00054246,120]
[321108704,1711900254237,-156.73066867,0.00054254,60]
[321108705,1711900254248,-838.43157224,0.000544,110]
[321108706,1711900254259,-848.97,0.0005442,2]
[321108707,1711900254268,-198.78,0.00054466,120]
[321108708,1711900254278,-1043.0,0.00054466,120]
[321108709,1711900254287,-289.99525699,0.00054476,7]
[321108710,1711900254297,-14268.81512849,0.0005448,30]
[321108711,1711900254306,-154.24,0.000545,8]
[321108712,1711900254316,-154.24,0.000545,8]
[321108713,1711900254327,-154.24,0.000545,8]
[321108714,1711900254337,-154.24,0.000545,8]